bitfinex-derivatives/quotes_BNBF0:USTF0_20250907
["timestamp","ask_amount","ask_price","bid_price","bid_amount"]
[1757263795564,0.19881624,876.74,875.73,1.5447528]
[1757263795768,0.19881624,876.74,875.71,1.5447528]
[1757263796069,0.19881624,876.74,875.72,1.5447528]
[1757263797770,0.19881624,876.74,875.73,1.5447528]
[1757263798567,0.19881624,876.74,875.66,1.5447528]
[1757263798766,0.19881624,876.74,875.65,1.5447528]
[1757263799271,0.19881624,876.74,875.66,1.5447528]
[1757263800467,0.19881624,876.74,874.95,2.56978014]
[1757263800468,0.19881624,876.74,875.67,1.5447528]
[1757263801069,0.19881624,876.74,875.68,1.5447528]
[1757263801570,1.0218117,876.87,875.68,1.5447528]
[1757263801875,0.19883442,876.48,875.68,1.5447528]
[1757263802073,1.0218117,876.87,875.68,1.5447528]
[1757263802368,0.19883442,876.29,875.67,1.5447528]
[1757263802573,1.0218117,876.88,875.67,1.5447528]
[1757263802773,0.19883442,876.14,875.67,1.5447528]
[1757263803270,0.19883442,876.03,875.68,1.5447528]
[1757263803876,0.19883442,876.03,875.67,1.5447528]
[1757263804373,1.0218117,876.87,875.68,1.5447528]
[1757263805468,1.0218117,876.86,875.68,1.5447528]
[1757263805870,1.0218117,876.86,875.69,1.5447528]
[1757263806072,1.0218117,876.88,875.67,1.5447528]
[1757263806270,1.0218117,876.87,875.68,1.5447528]
[1757263807074,1.0218117,876.87,875.69,1.5447528]
[1757263807374,0.19883442,876.58,875.69,1.5447528]
[1757263808174,0.19883442,876.58,875.7,1.5447528]
[1757263808371,0.19883442,876.58,875.75,1.5447528]
[1757263809176,0.19883442,876.58,875.77,1.5447528]
[1757263809975,0.19883442,876.58,875.76,1.5447528]
[1757263810178,0.19883442,876.58,875.78,1.5447528]
[1757263811073,0.19883442,876.58,875.8,1.5447528]
[1757263811478,0.19883442,876.58,875.87,1.5447528]
[1757263812077,0.19883442,876.58,875.88,1.5447528]
[1757263813276,0.19883442,876.58,875.57,1.5447528]
[1757263815174,0.19883442,876.58,875.56,1.5447528]
[1757263815779,0.19883442,876.58,875.57,1.5447528]
[1757263817476,0.19883442,876.58,875.56,1.5447528]
[1757263820883,0.19883442,876.58,875.55,1.5447528]
[1757263821583,0.19883442,876.58,875.56,1.5447528]
[1757263823386,0.19883442,876.58,875.76,1.5447528]
[1757263823579,0.19883442,876.58,875.61,1.5447528]
[1757263823781,0.19883442,876.58,875.63,1.5447528]
[1757263824182,0.19883442,876.58,875.62,1.5447528]
[1757263825187,0.19883442,876.58,875.89,1.0297558]
[1757263826988,0.19883442,876.58,875.88,1.0297558]
[1757263827586,0.19883442,876.58,875.89,1.0297558]
[1757263828285,0.19883442,876.58,875.88,1.0297558]
[1757263829791,0.19883442,876.58,875.89,1.0297558]
[1757263831791,0.19883442,876.58,875.87,1.0297558]
[1757263833392,0.19883442,876.58,876.02,1.0297558]
[1757263833587,0.19883442,876.58,876.05,1.0297558]
[1757263841599,0.19883442,876.58,876.02,1.0297558]
[1757263843401,0.19883442,876.58,876.03,1.0297558]
[1757263844004,0.19883442,876.58,876.02,1.0297558]
[1757263845106,0.19883442,876.58,876.05,0.77209268]
[1757263846813,0.19883442,876.58,876.05,1.80184848]
[1757263848514,0.19883442,876.58,876.05,0.77209268]
[1757263848915,0.19883442,876.58,876.05,1.80184848]
[1757263849218,0.19883442,876.58,876.05,0.77209268]
[1757263852717,0.19883442,876.58,876.06,0.77209268]
[1757263852915,0.19883442,876.58,876.05,0.77209268]
[1757263855514,0.19883442,876.58,876.06,0.77209268]
[1757263857117,0.19883442,876.58,876.05,0.77209268]
[1757263859523,0.19883442,876.58,876.07,0.77209268]
[1757263887344,0.19883442,876.58,876.07,1.80184848]
[1757263890750,0.19883442,876.58,876.07,0.77209268]
[1757263894155,0.19883442,876.58,876.05,1.0297558]
[1757263894355,0.19883442,876.58,876.03,1.0297558]
[1757263894653,0.19883442,876.58,876.02,1.0297558]
[1757263895554,0.19883442,876.58,876.03,1.0297558]
[1757263895961,0.19883442,876.58,875.09,2.56978014]
[1757263895962,0.19883442,876.58,876.04,1.0297558]
[1757263896757,0.19883442,876.58,876.03,1.0297558]
[1757263897358,0.19883442,876.58,876.02,1.0297558]
[1757263897862,0.19883442,876.58,876.01,1.0297558]
[1757263900562,0.19883442,876.58,876.02,1.0297558]
[1757263901661,0.19883442,876.58,876.05,1.0297558]
[1757263902659,0.19883442,876.58,876.04,1.0297558]
[1757263903663,0.19883442,876.58,876.05,1.0297558]
[1757263904162,0.19883442,876.58,875.85,1.5447528]
[1757263904163,0.19883442,876.58,876.04,1.0297558]
[1757263904363,0.19883442,876.58,876.02,1.0297558]
[1757263907465,0.19883442,876.58,876.03,1.0297558]
[1757263908068,0.19883442,876.58,876.04,1.0297558]
[1757263910372,0.19883442,876.58,876.05,1.0297558]
[1757263911568,0.19883442,876.58,876.06,1.0297558]
[1757263912069,0.19883442,876.58,876.05,1.0297558]
[1757263913872,0.19883442,876.58,876.06,1.0297558]
[1757263914372,0.19883442,876.58,876.07,1.0297558]
[1757263934084,0.19883442,876.58,876.0,1.14335115]
[1757263934491,0.19883442,876.58,875.43,2.56978014]
[1757263934689,0.19883442,876.58,875.39,2.56978014]
[1757263935690,0.19883442,876.58,875.41,2.56978014]
[1757263941798,0.19883442,876.58,875.52,2.56978014]
[1757263944996,0.19883442,876.58,875.53,2.56978014]
[1757263945503,0.19883442,876.58,875.47,2.56978014]
[1757263946103,0.19883442,876.58,875.45,2.56978014]
[1757263947102,0.19883442,876.58,875.46,2.56978014]
[1757263948605,0.19883442,876.58,875.47,2.56978014]
[1757263949702,0.19883442,876.58,875.42,2.56978014]
[1757263950104,0.19883442,876.58,875.39,2.56978014]
[1757263951803,0.19883442,876.58,875.43,2.56978014]
[1757263953914,0.19883442,876.58,875.44,2.56978014]
[1757263954217,0.19883442,876.58,876.08,2.31826186]
[1757263961616,0.19883442,876.58,876.08,0.77275395]
[1757263963123,0.19883442,876.58,876.09,0.77275395]
[1757263969230,0.19883442,876.58,876.11,0.77275395]
[1757263969431,0.19883442,876.58,876.16,0.77275395]
[1757263969628,0.19883442,876.58,876.2,0.77275395]
[1757263981931,0.19883442,876.58,876.19,0.77275395]
[1757263982730,0.19883442,876.58,876.2,0.77275395]
[1757263983130,0.19883442,876.58,876.19,0.77275395]
[1757263983830,0.19883442,876.58,876.18,0.77275395]
[1757263984034,0.19883442,876.58,876.12,0.77275395]
[1757264007450,1.0218117,877.1,876.12,0.77275395]
[1757264007650,0.19879183,876.47,875.92,1.54550791]
[1757264007849,1.0218117,877.07,875.92,1.54550791]
[1757264008053,0.19880489,876.34,875.92,1.54550791]
[1757264008350,1.0218117,877.08,875.92,1.54550791]
[1757264008553,1.0218117,877.04,875.88,1.54550791]
[1757264008847,1.0218117,877.03,875.88,1.54550791]
[1757264009550,0.19880943,876.75,875.86,1.54550791]
[1757264010753,0.19880943,876.75,875.89,1.54550791]
[1757264011053,0.19880943,876.75,875.69,1.54550791]
[1757264011654,0.19880943,876.75,875.68,1.54550791]
[1757264011950,0.19880943,876.75,875.67,1.54550791]
[1757264013256,0.19880943,876.75,875.68,1.54550791]
[1757264015856,0.19880943,876.75,875.69,1.54550791]
[1757264016259,0.19880943,876.75,875.67,1.54550791]
[1757264017259,0.19880943,876.75,875.68,1.54550791]
[1757264019261,0.19880943,876.75,875.69,1.54550791]
[1757264020660,0.19880943,876.75,875.81,1.54550791]
[1757264021660,0.19880943,876.75,875.8,1.54550791]
[1757264022664,0.19880943,876.75,875.81,1.54550791]
[1757264023563,0.19880943,876.75,875.8,1.54550791]
[1757264023964,0.19880943,876.75,875.81,1.54550791]
[1757264025860,0.19880943,876.75,875.82,1.54550791]
[1757264026361,0.19880943,876.75,875.86,1.54550791]
[1757264029568,0.19880943,876.75,875.85,1.54550791]
[1757264030468,0.19880943,876.75,875.86,1.54550791]
[1757264031468,0.19880943,876.75,875.9,1.54550791]
[1757264031669,0.19880943,876.75,875.94,1.54550791]
[1757264032665,0.19880943,876.75,875.84,1.54550791]
[1757264033568,0.19880943,876.75,875.85,1.54550791]
[1757264036368,0.19880943,876.75,874.08,5.1239207]
[1757264036369,0.19880943,876.75,875.86,1.54550791]
[1757264036868,0.19880943,876.75,875.66,1.54550791]
[1757264037168,0.19880943,876.75,875.67,1.54550791]
[1757264037669,0.19880943,876.75,875.93,1.0295284]
[1757264037867,0.19880943,876.75,875.92,1.0295284]
[1757264038365,0.19880943,876.75,875.93,1.0295284]
[1757264040566,0.19880943,876.75,875.89,1.0295284]
[1757264041166,0.19880943,876.75,876.0,1.0295284]
[1757264041665,0.19880943,876.75,875.98,1.0295284]
[1757264042769,0.19880943,876.75,876.02,1.0295284]
[1757264043367,0.19880943,876.75,876.01,1.0295284]
[1757264044370,0.19880943,876.75,876.02,1.0295284]
[1757264045172,0.19880943,876.75,876.03,1.0295284]
[1757264046276,0.19880943,876.75,876.02,1.0295284]
[1757264050375,0.19880943,876.75,876.08,1.0295284]
[1757264050877,0.19880943,876.75,876.14,1.0295284]
[1757264053377,0.19880943,876.75,876.13,1.0295284]
[1757264054677,0.19880943,876.75,876.14,1.0295284]
[1757264055281,0.19880943,876.75,876.13,1.0295284]
[1757264058080,0.19880943,876.75,876.15,1.0295284]
[1757264058488,0.19880943,876.75,876.14,1.0295284]
[1757264060088,0.19880943,876.75,876.13,1.0295284]
[1757264060788,0.19880943,876.75,876.17,1.0295284]
[1757264061691,0.19880943,876.75,876.18,1.0295284]
[1757264063193,0.19880943,876.75,876.19,1.0295284]
[1757264067600,0.19880943,876.75,876.24,0.7709654]
[1757264068701,0.19880943,876.75,876.24,1.8004938]
[1757264068900,0.19880943,876.75,876.24,0.7709654]
[1757264069898,0.19880943,876.75,876.24,1.8004938]
[1757264070105,0.19880943,876.75,876.24,0.7709654]
[1757264097825,0.19880943,876.75,876.23,1.0295284]
[1757264098029,0.19880943,876.75,876.24,0.77207199]
[1757264098228,0.19880943,876.75,876.24,1.80160039]
[1757264098524,0.19880943,876.75,876.24,0.77207199]
[1757264099130,0.19880943,876.75,876.24,1.80160039]
[1757264099429,0.19880943,876.75,876.24,0.77207199]
[1757264106329,0.19880943,876.75,876.24,1.80160039]
[1757264108929,0.19880943,876.75,876.24,0.77207199]
[1757264109328,0.19880943,876.75,876.24,1.80160039]
[1757264109533,0.19880943,876.75,876.19,0.77207199]
[1757264115141,0.19880943,876.75,876.18,0.77207199]
[1757264115441,0.19880943,876.75,876.19,0.77207199]
[1757264124650,0.19880943,876.75,876.19,1.80160039]
[1757264130955,0.19880943,876.75,876.18,1.80160039]
[1757264134154,0.19880943,876.75,876.18,0.77207199]
[1757264134350,0.19880943,876.75,876.57,0.77207199]
[1757264134854,0.19880943,876.75,876.61,0.77207199]
[1757264141360,0.19880943,876.75,876.62,1.49878675]
[1757264141562,0.19880943,876.75,876.62,0.77207199]
[1757264145466,0.19880943,876.75,876.63,1.49807794]
[1757264145664,0.19880943,876.75,876.63,0.77207199]
[1757264148070,0.19880943,876.75,876.57,0.77207199]
[1757264148366,0.19880943,876.75,876.58,0.72562116]
[1757264148669,0.19880943,876.75,876.59,0.72562116]
[1757264148863,0.19880943,876.75,876.6,0.72562116]
[1757264149064,0.19880943,876.75,876.61,0.72562116]
[1757264149268,0.19880943,876.75,876.62,0.72562116]
[1757264149568,0.19880943,876.75,876.63,0.72562116]
[1757264149767,0.19880943,876.75,876.64,0.72562116]
[1757264149966,0.19880943,876.75,876.57,0.77207199]
[1757264150164,0.19880943,876.75,876.58,0.72546599]
[1757264150363,0.19880943,876.75,876.59,0.72546599]
[1757264150568,0.19880943,876.75,876.6,0.72546599]
[1757264150766,0.19880943,876.75,876.61,0.72546599]
[1757264150972,0.19880943,876.75,876.62,0.72546599]
[1757264151164,0.19880943,876.75,876.63,0.72546599]
[1757264151366,0.19880943,876.75,876.64,0.72546599]
[1757264151666,0.19880943,876.75,876.56,0.77207199]
[1757264151868,0.19880943,876.75,876.6,0.77207199]
[1757264152069,0.19880943,876.75,876.61,0.72524748]
[1757264152270,0.19880943,876.75,876.62,0.72524748]
[1757264152468,0.19880943,876.75,876.63,0.72524748]
[1757264152670,0.19880943,876.75,876.64,0.72524748]
[1757264152871,0.19880943,876.75,876.6,0.77207199]
[1757264153170,0.19880943,876.75,876.61,0.72515106]
[1757264153466,0.19880943,876.75,876.62,0.72515106]
[1757264153671,0.19880943,876.75,876.63,0.72515106]
[1757264153973,0.19880943,876.75,876.64,0.72515106]
[1757264154170,0.19880943,876.75,876.6,0.77207199]
[1757264154369,0.19880943,876.75,876.61,0.72498121]
[1757264154570,0.19880943,876.75,876.62,0.72498121]
[1757264154769,0.19880943,876.75,876.63,0.72498121]
[1757264154969,0.19880943,876.75,876.64,0.72498121]
[1757264155169,0.19880943,876.75,876.6,0.77207199]
[1757264155371,0.19880943,876.75,876.61,0.72490699]
[1757264155571,0.19880943,876.75,876.62,0.72490699]
[1757264155768,0.19880943,876.75,876.32,1.0295284]
[1757264155968,0.19880943,876.75,876.6,0.766899]
[1757264156172,0.19880943,876.75,876.61,0.72490689]
[1757264156370,0.19880943,876.75,876.62,0.72490689]
[1757264156570,0.19880943,876.75,876.63,0.72490689]
[1757264156770,0.19880943,876.75,876.64,0.72490689]
[1757264156971,0.19880943,876.75,876.6,0.766899]
[1757264157175,0.19880943,876.75,876.61,0.72480611]
[1757264157372,0.19880943,876.75,876.62,0.72480611]
[1757264157577,0.19880943,876.75,876.63,0.72480611]
[1757264157878,0.19880943,876.75,876.64,0.72480611]
[1757264158080,0.19880943,876.75,876.64,0.766899]
[1757264161678,0.19880943,876.75,876.59,0.766899]
[1757264161880,0.19880943,876.75,876.6,0.72463229]
[1757264162174,0.19880943,876.75,876.61,0.72463229]
[1757264162377,0.19880943,876.75,876.62,0.72463229]
[1757264162577,0.19880943,876.75,876.63,0.72463229]
[1757264162777,0.19880943,876.75,876.64,0.72463229]
[1757264162974,0.19880943,876.75,876.59,0.766899]
[1757264163177,0.19880943,876.75,876.6,0.72459507]
[1757264163478,0.19880943,876.75,876.61,0.72459507]
[1757264163772,0.19880943,876.75,876.62,0.72459507]
[1757264163975,0.19880943,876.75,876.63,0.72459507]
[1757264164278,0.19880943,876.75,876.64,0.72459507]
[1757264164480,0.19880943,876.75,876.59,0.766899]
[1757264164677,0.19880943,876.75,876.6,0.72453755]
[1757264164973,0.19880943,876.75,876.61,0.72453755]
[1757264165177,0.19880943,876.75,876.62,0.72453755]
[1757264165478,0.19880943,876.75,876.63,0.72453755]
[1757264165675,0.19880943,876.75,876.64,0.72453755]
[1757264165875,0.19880943,876.75,876.59,0.766899]
[1757264166178,0.19880943,876.75,876.6,0.724517]
[1757264166378,0.19880943,876.75,876.61,0.724517]
[1757264166576,0.19880943,876.75,876.62,1.491416]
[1757264166780,0.19880943,876.75,876.63,0.724517]
[1757264166979,0.19880943,876.75,876.64,0.724517]
[1757264167179,0.19880943,876.75,876.62,0.766899]
[1757264167375,0.19880943,876.75,876.63,0.72449192]
[1757264167679,0.19880943,876.75,876.64,0.72449192]
[1757264167877,0.19880943,876.75,876.62,0.766899]
[1757264168180,0.19880943,876.75,876.63,0.72449195]
[1757264168380,0.19880943,876.75,876.64,0.72449195]
[1757264168581,0.19880943,876.75,876.63,0.766899]
[1757264168778,0.19880943,876.75,876.64,0.72448746]
[1757264168983,0.19880943,876.75,876.63,0.766899]
[1757264169181,0.19880943,876.75,876.64,1.49137726]
[1757264169378,0.19880943,876.75,876.64,0.766899]
[1757264186900,0.19880943,876.75,876.62,0.766899]
[1757264187299,0.19880943,876.75,876.61,0.766899]
[1757264192504,0.19880943,876.75,876.58,0.766899]
[1757264196708,0.19880943,876.75,876.58,1.7964274]
[1757264201416,1.53853421,877.77,876.55,0.1673885]
[1757264201610,1.53853421,877.62,876.3,1.54550791]
[1757264201913,1.02553922,877.27,876.13,1.54550791]
[1757264202216,1.02553922,877.28,876.07,1.54550791]
[1757264203212,1.02553922,877.3,876.05,1.54550791]
[1757264203815,1.02553922,877.35,875.99,1.54550791]
[1757264204211,1.02553922,877.37,875.97,1.54550791]
[1757264204410,0.1987623,877.02,875.94,1.54550791]
[1757264205417,0.1987623,877.02,875.93,1.54550791]
[1757264206317,0.1987623,877.02,875.91,1.54550791]
[1757264207312,0.1987623,877.02,875.25,1.134]
[1757264207313,0.1987623,877.02,875.88,1.54550791]
[1757264208317,0.1987623,877.02,875.87,1.54550791]
[1757264209315,0.1987623,877.02,875.86,1.54550791]
[1757264210214,0.1987623,877.02,875.85,1.54550791]
[1757264211216,0.1987623,877.02,875.84,1.54550791]
[1757264211416,0.1987623,877.02,875.85,1.54550791]
[1757264211821,0.1987623,877.02,875.95,1.54550791]
[1757264212117,0.1987623,877.02,875.96,1.54550791]
[1757264212317,0.1987623,877.02,875.95,1.54550791]
[1757264213725,0.1987623,877.02,876.0,1.54550791]
[1757264214122,0.1987623,877.02,875.99,1.54550791]
[1757264214325,0.1987623,877.02,876.03,1.54550791]
[1757264215224,0.1987623,877.02,876.02,1.54550791]
[1757264216622,0.1987623,877.02,876.01,1.54550791]
[1757264216922,0.1987623,877.02,876.02,1.54550791]
[1757264217128,0.1987623,877.02,876.08,1.54550791]
[1757264217324,0.1987623,877.02,876.07,1.54550791]
[1757264219127,0.1987623,877.02,876.08,1.54550791]
[1757264221234,0.1987623,877.02,876.09,1.54550791]
[1757264221533,0.1987623,877.02,876.08,1.54550791]
[1757264221933,0.1987623,877.02,876.06,1.54550791]
[1757264224433,0.1987623,877.02,876.05,1.54550791]
[1757264224733,0.1987623,877.02,876.07,1.54550791]
[1757264225432,0.1987623,877.02,876.06,1.54550791]
[1757264226339,0.1987623,877.02,876.07,1.54550791]
[1757264226538,0.1987623,877.02,876.01,1.54550791]
[1757264226838,0.1987623,877.02,876.02,1.54550791]
[1757264231445,0.1987623,877.02,876.19,1.02465082]
[1757264231744,0.1987623,877.02,876.2,1.02465082]
[1757264231948,0.1987623,877.02,876.16,1.02465082]
[1757264232148,0.1987623,877.02,876.17,1.02465082]
[1757264232549,0.1987623,877.02,876.16,1.02465082]
[1757264232846,0.1987623,877.02,876.17,1.02465082]
[1757264233148,0.1987623,877.02,875.98,1.02465082]
[1757264233348,0.1987623,877.02,875.89,1.02465082]
[1757264234049,0.1987623,877.02,875.88,1.02465082]
[1757264234349,0.1987623,877.02,875.63,1.54550791]
[1757264234350,0.1987623,877.02,875.89,1.02465082]
[1757264234546,0.1987623,877.02,875.88,1.02465082]
[1757264235550,0.1987623,877.02,875.89,1.02465082]
[1757264236448,0.1987623,877.02,875.88,1.02465082]
[1757264236649,0.1987623,877.02,875.63,1.54550791]
[1757264236650,0.1987623,877.02,875.89,1.02465082]
[1757264238455,0.1987623,877.02,875.88,1.02465082]
[1757264241354,0.1987623,877.02,875.96,1.02465082]
[1757264241964,0.1987623,877.02,875.93,1.02465082]
[1757264243362,0.1987623,877.02,876.0,1.02465082]
[1757264245358,0.1987623,877.02,876.01,1.02465082]
[1757264245561,0.1987623,877.02,876.02,1.02465082]
[1757264246058,0.1987623,877.02,875.0,1.112]
[1757264246059,0.1987623,877.02,876.0,1.02465082]
[1757264247163,0.1987623,877.02,875.1,2.56978014]
[1757264247164,0.1987623,877.02,875.97,1.02465082]
[1757264247961,0.1987623,877.02,875.73,1.02465082]
[1757264248162,0.1987623,877.02,875.72,1.02465082]
[1757264249264,0.1987623,877.02,875.73,1.02465082]
[1757264249465,0.1987623,877.02,875.72,1.02465082]
[1757264249666,0.1987623,877.02,875.63,1.02465082]
[1757264250462,0.1987623,877.02,875.64,1.02465082]
[1757264251966,0.1987623,877.02,875.6,1.02465082]
[1757264252162,0.1987623,877.02,874.85,0.993]
[1757264252163,0.1987623,877.02,875.61,1.02465082]
[1757264252363,0.1987623,877.02,875.6,1.02465082]
[1757264252667,0.1987623,877.02,875.63,1.02465082]
[1757264253169,0.1987623,877.02,875.64,1.02465082]
[1757264253369,0.1987623,877.02,875.66,1.02465082]
[1757264254166,0.1987623,877.02,875.67,1.02465082]
[1757264254667,0.1987623,877.02,875.56,1.02465082]
[1757264254970,0.1987623,877.02,875.62,1.02465082]
[1757264256270,0.1987623,877.02,875.63,1.02465082]
[1757264256567,0.1987623,877.02,875.62,1.02465082]
[1757264257370,0.1987623,877.02,875.63,1.02465082]
[1757264258271,0.1987623,877.02,875.64,1.02465082]
[1757264258468,0.1987623,877.02,875.63,1.02465082]
[1757264259167,0.1987623,877.02,875.64,1.02465082]
[1757264260369,0.1987623,877.02,875.65,1.02465082]
[1757264260568,0.1987623,877.02,875.36,1.02465082]
[1757264261167,0.1987623,877.02,875.38,1.02465082]
[1757264261373,0.1987623,877.02,875.72,0.77005545]
[1757264262074,0.1987623,877.02,875.76,0.77005545]
[1757264262368,0.1987623,877.02,875.75,0.77005545]
[1757264263469,0.1987623,877.02,875.74,0.77005545]
[1757264264473,0.1987623,877.02,875.73,0.77005545]
[1757264266474,0.1987623,877.02,875.72,0.77005545]
[1757264266971,0.1987623,877.02,875.6,0.77005545]
[1757264267471,0.1987623,877.02,875.59,0.77005545]
[1757264269374,0.1987623,877.02,875.58,0.77005545]
[1757264270480,0.1987623,877.02,875.6,0.77005545]
[1757264270779,0.1987623,877.02,875.61,0.77005545]
[1757264271381,0.1987623,877.02,875.6,0.77005545]
[1757264271581,0.1987623,877.02,875.61,0.77005545]
[1757264272080,0.1987623,877.02,875.57,0.77005545]
[1757264275382,0.1987623,877.02,875.56,0.77005545]
[1757264275585,0.1987623,877.02,875.6,0.77005545]
[1757264276481,0.1987623,877.02,875.59,0.77005545]
[1757264276783,0.1987623,877.02,875.69,0.77005545]
[1757264279390,0.1987623,877.02,875.46,1.02465082]
[1757264279391,0.1987623,877.02,875.68,0.77005545]
[1757264281490,0.1987623,877.02,875.69,0.77005545]
[1757264282495,0.1987623,877.02,875.71,0.77005545]
[1757264283288,0.1987623,877.02,875.72,0.77005545]
[1757264284493,1.02553922,877.0,875.74,0.77005545]
[1757264285396,1.02553922,877.0,875.75,0.77005545]
[1757264285598,1.02553922,876.99,875.75,0.77005545]
[1757264286496,1.02553922,876.97,875.76,0.77005545]
[1757264286896,1.02553922,876.96,875.76,0.77005545]
[1757264287198,1.02553922,876.97,875.76,0.77005545]
[1757264287493,1.02553922,876.96,875.76,0.77005545]
[1757264288296,1.02553922,876.95,875.76,0.77005545]
[1757264289299,1.02553922,876.91,875.78,0.77005545]
[1757264289499,1.02553922,876.9,875.78,0.77005545]
[1757264289999,1.02553922,876.89,875.79,0.77005545]
[1757264290499,1.02553922,876.88,875.79,0.77005545]
[1757264291396,1.02553922,876.87,875.79,0.77005545]
[1757264292500,1.02553922,876.86,875.8,0.77005545]
[1757264293101,1.02553922,876.85,875.8,0.77005545]
[1757264293601,1.02553922,876.86,875.8,0.77005545]
[1757264294501,1.02553922,876.88,875.79,0.77005545]
[1757264295501,1.02553922,876.87,875.79,0.77005545]
[1757264297097,1.73729651,877.02,875.79,0.77005545]
[1757264297098,1.02553922,876.86,875.79,0.77005545]
[1757264297403,1.02553922,876.85,875.8,0.77005545]
[1757264298503,1.02553922,876.84,875.8,0.77005545]
[1757264299405,1.02553922,876.83,875.8,0.77005545]
[1757264299605,0.1987623,877.02,875.72,0.77005545]
[1757264299805,0.1987623,877.02,875.77,0.77005545]
[1757264301299,0.1987623,877.02,875.78,0.77005545]
[1757264302501,0.1987623,877.02,875.79,0.77005545]
[1757264303202,0.1987623,877.02,875.96,0.77005545]
[1757264303401,0.1987623,877.02,875.95,0.77005545]
[1757264303606,0.1987623,877.02,875.99,0.77005545]
[1757264304503,0.1987623,877.02,876.0,0.77005545]
[1757264306108,0.1987623,877.02,876.01,0.77005545]
[1757264307509,0.1987623,877.02,876.02,0.77005545]
[1757264309606,0.1987623,877.02,876.03,0.77005545]
[1757264313013,0.1987623,877.02,876.05,0.77005545]
[1757264313213,0.1987623,877.02,875.94,1.02465082]
[1757264313214,1.22430152,877.02,875.94,1.02465082]
[1757264313412,0.1987623,877.02,875.89,1.02465082]
[1757264313810,0.1987623,877.02,875.87,1.02465082]
[1757264314208,0.1987623,877.02,875.86,1.02465082]
[1757264320913,0.1987623,877.02,875.8,1.02465082]
[1757264322215,0.1987623,877.02,875.81,1.02465082]
[1757264323312,0.1987623,877.02,875.82,1.02465082]
[1757264328516,0.1987623,877.02,875.81,1.02465082]
[1757264328718,0.1987623,877.02,875.82,1.02465082]
[1757264329120,0.1987623,877.02,875.81,1.02465082]
[1757264330316,0.1987623,877.02,875.67,1.02465082]
[1757264330920,0.1987623,877.02,875.68,1.02465082]
[1757264333922,0.1987623,877.02,875.6,1.02465082]
[1757264335823,0.1987623,877.02,875.61,1.02465082]
[1757264339430,0.1987623,877.02,875.62,1.02465082]
[1757264340230,0.1987623,877.02,875.66,1.02465082]
[1757264341831,0.1987623,877.02,875.67,1.02465082]
[1757264342232,0.1987623,877.02,875.66,1.02465082]
[1757264342432,0.1987623,877.02,875.67,1.02465082]
[1757264343933,0.1987623,877.02,875.78,1.02465082]
[1757264345533,0.1987623,877.02,875.71,1.02465082]
[1757264346333,0.1987623,877.02,875.72,1.02465082]
[1757264346929,0.1987623,877.02,875.71,1.02465082]
[1757264347433,0.1987623,877.02,875.72,1.02465082]
[1757264349329,0.1987623,877.02,875.73,1.02465082]
[1757264350129,0.1987623,877.02,875.77,1.02465082]
[1757264350334,0.1987623,877.02,875.78,1.02465082]
[1757264352230,0.1987623,877.02,874.8,1.277]
[1757264352231,0.1987623,877.02,875.81,1.02465082]
[1757264353136,0.1987623,877.02,875.85,1.02465082]
[1757264354134,0.1987623,877.02,875.86,1.02465082]
[1757264355436,0.1987623,877.02,875.95,1.02465082]
[1757264355634,0.1987623,877.02,875.94,1.02465082]
[1757264356137,0.1987623,877.02,875.95,1.02465082]
[1757264356735,0.1987623,877.02,875.96,1.02465082]
[1757264357438,1.22430152,877.02,875.97,1.02465082]
[1757264358339,1.02553922,877.01,875.99,1.02465082]
[1757264358535,0.1987623,877.02,875.94,1.02465082]
[1757264359340,0.1987623,877.02,875.96,1.02465082]
[1757264361444,0.1987623,877.02,875.97,1.02465082]
[1757264362042,0.1987623,877.02,875.98,1.02465082]
[1757264362245,1.02553922,876.99,875.97,1.02465082]
[1757264362540,1.02553922,877.0,875.96,1.02465082]
[1757264362939,1.02553922,876.98,875.97,1.02465082]
[1757264366044,1.02553922,876.98,875.98,1.02465082]
[1757264366345,1.02553922,877.0,875.96,1.02465082]
[1757264366641,1.02553922,876.99,875.96,1.02465082]
[1757264367942,1.02553922,876.97,875.98,1.02465082]
[1757264368341,1.02553922,876.94,876.01,1.02465082]
[1757264369043,1.02553922,876.93,876.02,1.02465082]
[1757264370445,1.02553922,876.92,876.02,1.02465082]
[1757264370649,1.02553922,876.92,876.01,1.02465082]
[1757264372152,1.02553922,876.91,876.01,1.02465082]
[1757264372553,1.02553922,876.89,876.03,1.02465082]
[1757264373253,1.02553922,876.89,876.06,0.77272587]
[1757264374653,1.02553922,876.89,876.03,0.36621373]
[1757264375556,1.02553922,876.85,875.82,1.54550791]
[1757264376262,1.02553922,876.8,875.88,1.54550791]
[1757264377765,1.02553922,876.77,875.91,1.54550791]
[1757264378161,1.02553922,876.78,875.9,1.54550791]
[1757264381965,1.02553922,876.78,875.89,1.54550791]
[1757264382170,1.02553922,876.77,875.91,1.54550791]
[1757264384767,1.02553922,876.77,875.91,0.11434519]
[1757264384967,1.02553922,876.73,875.33,2.56978014]
[1757264385268,1.02553922,876.73,875.3,2.56978014]
[1757264385467,1.02553922,876.76,875.3,2.56978014]
[1757264385767,1.02553922,876.76,875.09,2.56978014]
[1757264386164,1.02553922,876.77,875.09,2.56978014]
[1757264386668,1.02553922,876.83,874.93,2.56978014]
[1757264386869,1.02553922,876.84,874.93,2.56978014]